fUSD/lending_fUSD_20240327
["ID","MTS","AMOUNT","RATE_DAILY","PERIOD"]
[320785386,1711555875093,-568.0,0.00054795,120]
[320785387,1711555875103,-500.0,0.00054795,120]
[320785388,1711555875114,-500.0,0.00054795,120]
[320785389,1711555875124,-500.0,0.00054795,120]
[320785390,1711555875134,-500.0,0.00054795,120]
[320785391,1711555875144,-500.0,0.00054795,120]
[320785392,1711555875155,-500.0,0.00054795,120]
[320785393,1711555875166,-500.0,0.00054795,120]
[320785394,1711555875177,-500.0,0.00054795,120]
[320785395,1711555875187,-500.0,0.00054795,120]
[320785396,1711555875197,-500.0,0.00054795,120]
[320785397,1711555875207,-500.0,0.00054795,120]
[320785398,1711555875217,-500.0,0.00054795,120]
[320785399,1711555875229,-500.0,0.00054795,120]
[320785400,1711555875239,-500.0,0.00054795,120]
[320785401,1711555875249,-500.0,0.00054795,120]
[320785402,1711555875259,-500.0,0.00054795,120]
[320785403,1711555875269,-500.0,0.00054795,120]
[320785404,1711555875278,-500.0,0.00054795,120]
[320785405,1711555875288,-500.0,0.00054795,120]
[320785406,1711555875297,-500.0,0.00054795,120]
[320785407,1711555875308,-500.0,0.00054795,120]
[320785408,1711555875318,-500.0,0.00054795,120]
[320785409,1711555875328,-500.0,0.00054795,120]
[320785410,1711555875340,-500.0,0.00054795,120]
[320785411,1711555875350,-500.0,0.00054795,120]
[320785412,1711555875361,-500.0,0.00054795,120]
[320785413,1711555875371,-500.0,0.00054795,120]
[320785414,1711555875381,-500.0,0.00054795,120]
[320785415,1711555875391,-500.0,0.00054795,120]
[320785416,1711555875401,-500.0,0.00054795,120]
[320785417,1711555875411,-500.0,0.00054795,120]
[320785418,1711555875421,-500.0,0.00054795,120]
[320785419,1711555875431,-500.0,0.00054795,120]
[320785420,1711555875441,-500.0,0.00054795,120]
[320785421,1711555875451,-500.0,0.00054795,120]
[320785422,1711555875462,-500.0,0.00054795,120]
[320785423,1711555875472,-500.0,0.00054795,120]
[320785424,1711555875494,-500.0,0.00054795,120]
[320785425,1711555875504,-500.0,0.00054795,120]
[320785426,1711555875516,-500.0,0.00054795,120]
[320785427,1711555875527,-500.0,0.00054795,120]
[320785428,1711555875538,-500.0,0.00054795,120]
[320785429,1711555875549,-500.0,0.00054795,120]
[320785430,1711555875561,-500.0,0.00054795,120]
[320785431,1711555875571,-500.0,0.00054795,120]
[320785432,1711555875582,-500.0,0.00054795,120]
[320785433,1711555875592,-500.0,0.00054795,120]
[320785434,1711555875603,-500.0,0.00054795,120]
[320785435,1711555875612,-500.0,0.00054795,120]
[320785436,1711555875622,-500.0,0.00054795,120]
[320785437,1711555875632,-500.0,0.00054795,120]
[320785438,1711555875642,-500.0,0.00054795,120]
[320785439,1711555875652,-500.0,0.00054795,120]
[320785440,1711555875661,-500.0,0.00054795,120]
[320785441,1711555875671,-500.0,0.00054795,120]
[320785442,1711555875680,-500.0,0.00054795,120]
[320785443,1711555875690,-500.0,0.00054795,120]
[320785444,1711555875699,-500.0,0.00054795,120]
[320785445,1711555875709,-500.0,0.00054795,120]
[320785446,1711555875719,-500.0,0.00054795,120]
[320785447,1711555875733,-500.0,0.00054795,120]
[320785448,1711555875744,-500.0,0.00054795,120]
[320785449,1711555875754,-500.0,0.00054795,120]
[320785450,1711555875764,-500.0,0.00054795,120]
[320785451,1711555875774,-500.0,0.00054795,120]
[320785452,1711555875784,-500.0,0.00054795,120]
[320785453,1711555875794,-500.0,0.00054795,120]
[320785454,1711555875804,-500.0,0.00054795,120]
[320785455,1711555875814,-500.0,0.00054795,120]
[320785456,1711555875823,-500.0,0.00054795,120]
[320785457,1711555875834,-500.0,0.00054795,120]
[320785458,1711555875845,-500.0,0.00054795,120]
[320785459,1711555875854,-500.0,0.00054795,120]
[320785460,1711555875864,-500.0,0.00054795,120]
[320785461,1711555875874,-500.0,0.00054795,120]
[320785462,1711555875883,-500.0,0.00054795,120]
[320785463,1711555875893,-500.0,0.00054795,120]
[320785464,1711555875902,-500.0,0.00054795,120]
[320785465,1711555875912,-500.0,0.00054795,120]
[320785466,1711555875922,-500.0,0.00054795,120]
[320785467,1711555875932,-500.0,0.00054795,120]
[320785468,1711555875949,-500.0,0.00054795,120]
[320785469,1711555875958,-500.0,0.00054795,120]
[320785470,1711555875968,-500.0,0.00054795,120]
[320785471,1711555875980,-500.0,0.00054795,120]
[320785472,1711555875990,-500.0,0.00054795,120]
[320785473,1711555876003,-500.0,0.00054795,120]
[320785474,1711555876013,-500.0,0.00054795,120]
[320785475,1711555876023,-500.0,0.00054795,120]
[320785476,1711555876034,-500.0,0.00054795,120]
[320785477,1711555876044,-500.0,0.00054795,120]
[320785478,1711555876054,-500.0,0.00054795,120]
[320785479,1711555876065,-500.0,0.00054795,120]
[320785480,1711555876075,-500.0,0.00054795,120]
[320785481,1711555876086,-500.0,0.00054795,120]
[320785482,1711555876096,-500.0,0.00054795,120]
[320785483,1711555876106,-500.0,0.00054795,120]
[320785484,1711555876117,-500.0,0.00054795,120]
[320785485,1711555876127,-500.0,0.00054795,120]
[320785486,1711555876137,-500.0,0.00054795,120]
[320785487,1711555876147,-500.0,0.00054795,120]
[320785488,1711555876158,-500.0,0.00054795,120]
[320785489,1711555876169,-500.0,0.00054795,120]
[320785490,1711555876179,-500.0,0.00054795,120]
[320785491,1711555876189,-500.0,0.00054795,120]
[320785492,1711555876199,-500.0,0.00054795,120]
[320785493,1711555876210,-500.0,0.00054795,120]
[320785494,1711555876220,-500.0,0.00054795,120]
[320785495,1711555876232,-500.0,0.00054795,120]
[320785496,1711555876243,-500.0,0.00054795,120]
[320785497,1711555876254,-500.0,0.00054795,120]
[320785498,1711555876264,-500.0,0.00054795,120]
[320785499,1711555876276,-978.0,0.00054795,120]
[320785500,1711555876287,-196.0,0.00054795,60]
[320785501,1711555876557,-196.0,0.00054795,60]
[320785502,1711555876570,-1391.876613,0.00054795,120]
[320785503,1711555876580,-1391.876613,0.00054795,120]
[320785504,1711555876589,-480.98609428,0.000548,30]
[320785505,1711555876599,-3805.0,0.000548,120]
[320785506,1711555876609,-156.89726048,0.00054801,60]
[320785507,1711555876619,-150.0,0.00054808,14]
[320785508,1711555876628,-150.0,0.0005481,14]
[320785509,1711555876638,-150.0,0.00054818,14]
[320785510,1711555876647,-150.0,0.00054819,14]
[320785511,1711555876657,-1443.10776459,0.00054832,120]
[320785512,1711555876667,-150.0,0.00054834,14]
[320785513,1711555876676,-157.13009561,0.00054834,60]
[320785514,1711555876685,-150.0,0.00054838,14]
[320785515,1711555876695,-150.0,0.00054842,14]
[320785516,1711555876704,-150.0,0.00054842,14]
[320785517,1711555876714,-150.0,0.00054843,14]
[320785518,1711555876724,-150.0,0.00054867,14]
[320785519,1711555876738,-150.0,0.0005488,14]
[320785520,1711555876748,-170.0,0.0005488,76]
[320785521,1711555876759,-150.0,0.00054885,14]
[320785522,1711555876768,-150.0,0.00054885,14]
[320785523,1711555876778,-152.9250402,0.00054897,60]
[320785524,1711555876787,-158.61463628,0.000549,60]
[320785525,1711555876796,-700.0,0.000549,20]
[320785526,1711555876806,-174.70402619,0.000549,2]
[320785527,1711555876816,-1280.62871207,0.000549,2]
[320785528,1711555876825,-5534.48199251,0.000549,2]
[320785529,1711555876835,-150.0,0.00054906,14]
[320785530,1711555876845,-150.0,0.00054908,14]
[320785531,1711555876855,-150.0,0.0005491,14]
[320785532,1711555876865,-150.0,0.00054911,14]
[320785533,1711555876874,-150.0,0.00054919,14]
[320785534,1711555876884,-150.0,0.0005492,14]
[320785535,1711555876893,-241.07726508,0.00054928,102]
[320785536,1711555876903,-150.0,0.00054938,14]
[320785537,1711555876913,-155.97461956,0.00054945,60]
[320785538,1711555876922,-150.0,0.00054948,14]
[320785539,1711555876932,-1500.0,0.00054951,14]
[320785540,1711555876942,-7944.36792634,0.00054968,2]
[320785541,1711555876951,-150.0,0.0005497,14]
[320785542,1711555876961,-150.0,0.00054973,14]
[320785543,1711555876971,-150.0,0.00054975,14]
[320785544,1711555876983,-7820.7,0.00054977,120]
[320785545,1711555876993,-150.0,0.00054978,14]
[320785546,1711555877006,-150.0,0.00054988,14]
[320785547,1711555877015,-150.0,0.00054996,14]
[320785548,1711555877025,-3314.18917234,0.00055,60]
[320785549,1711555877035,-1499.19655068,0.00055,30]
[320785550,1711555877045,-250000.0,0.00055,120]
[320785551,1711555877059,-163.81991671,0.00055,40]
[320785552,1711555877069,-10833.48916843,0.00055,30]
[320785553,1711555877079,-10457.04433233,0.00055,120]
[320785554,1711555877089,-2000.72020692,0.00055,5]
[320785555,1711555877098,-204322.52876025,0.00055,2]
[320785556,1711555877107,-21180.59218027,0.00055,30]
[320785557,1711555877118,-211272.16265562,0.00055,30]
[320785558,1711555877128,-2343.13530962,0.00055,120]
[320785559,1711555877137,-151.0,0.00055,30]
[320785560,1711555877149,-151.0,0.00055,120]
[320785561,1711555877161,-2937.172941,0.00055,96]
[320785562,1711555877171,-2937.172941,0.00055,96]
[320785563,1711555877181,-151.0,0.00055,120]
[320785564,1711555877192,-151.0,0.00055,120]
[320785565,1711555877203,-151.0,0.00055,120]
[320785566,1711555877213,-151.0,0.00055,120]
[320785567,1711555877223,-151.0,0.00055,120]
[320785568,1711555877236,-262.611744,0.00055,120]
[320785569,1711555877245,-1704.19,0.00055,8]
[320785570,1711555877255,-1704.19,0.00055,8]
[320785571,1711555877265,-1704.19,0.00055,8]
[320785572,1711555877275,-1704.19,0.00055,8]
[320785573,1711555877285,-1704.19,0.00055,8]
[320785574,1711555877295,-1704.19,0.00055,8]
[320785575,1711555877305,-1704.19,0.00055,8]
[320785576,1711555877315,-1704.19,0.00055,8]
[320785577,1711555877325,-1704.19,0.00055,8]
[320785578,1711555877335,-1704.19,0.00055,8]
[320785579,1711555877345,-1704.19,0.00055,8]
[320785580,1711555877355,-262.611744,0.00055,120]
[320785581,1711555877365,-1704.19,0.00055,8]
[320785582,1711555877376,-1704.19,0.00055,8]
[320785583,1711555877386,-1704.19,0.00055,8]
[320785584,1711555877395,-1704.19,0.00055,8]
[320785585,1711555877405,-1704.19,0.00055,8]
[320785586,1711555877415,-1704.19,0.00055,8]
[320785587,1711555877425,-1704.19,0.00055,8]
[320785588,1711555877434,-1704.19,0.00055,8]
[320785589,1711555877444,-1704.19,0.00055,8]
[320785590,1711555877455,-1500.0,0.00055,120]
[320785591,1711555877464,-150.0,0.00055,14]
[320785592,1711555877473,-184.888124,0.00055,120]
[320785593,1711555877485,-184.888124,0.00055,120]
[320785594,1711555877494,-151.0,0.00055,120]
[320785595,1711555877503,-151.0,0.00055,14]
[320785596,1711555877513,-401.803918,0.00055,120]
[320785597,1711555877522,-401.803918,0.00055,120]
[320785598,1711555877531,-150.0,0.00055014,14]
[320785599,1711555877540,-150.0,0.00055015,14]
[320785600,1711555877550,-175.16019752,0.0005502,120]
[320785601,1711555877560,-150.0,0.00055023,14]
[320785602,1711555877569,-150.0,0.00055025,14]
[320785603,1711555877578,-150.0,0.00055032,14]
[320785604,1711555877588,-1226.8115223,0.00055036,120]
[320785605,1711555877597,-556.0,0.00055041,120]
[320785606,1711555877606,-177.45308,0.00055044,30]
[320785607,1711555877615,-1156.819569,0.00055044,30]
[320785608,1711555877625,-150.0,0.00055062,14]
[320785609,1711555877635,-2000.0,0.00055065,15]
[320785610,1711555877645,-200.0,0.00055065,15]
[320785611,1711555877654,-500.0,0.00055065,2]
[320785612,1711555877664,-500.0,0.00055065,2]
[320785613,1711555877674,-500.0,0.00055065,2]
[320785614,1711555877684,-405.7195,0.00055065,2]
[320785615,1711555877693,-1000.0,0.00055065,2]
[320785616,1711555877703,-1000.0,0.00055065,2]
[320785617,1711555877712,-1000.0,0.00055065,2]
[320785618,1711555877722,-1000.0,0.00055065,2]
[320785619,1711555877732,-1000.0,0.00055065,2]
[320785620,1711555877742,-1000.0,0.00055065,2]
[320785621,1711555877752,-1000.0,0.00055065,2]
[320785622,1711555877762,-1000.0,0.00055065,2]
[320785623,1711555877771,-1000.0,0.00055065,2]
[320785624,1711555877781,-1000.0,0.00055065,2]
[320785625,1711555877791,-1000.0,0.00055065,2]
[320785626,1711555877801,-1000.0,0.00055065,2]
[320785627,1711555877811,-1000.0,0.00055065,2]
[320785628,1711555877821,-1000.0,0.00055065,2]
[320785629,1711555877830,-1000.0,0.00055065,2]
[320785630,1711555877841,-1000.0,0.00055065,2]
[320785631,1711555877851,-1000.0,0.00055065,2]
[320785632,1711555877861,-1000.0,0.00055065,2]
[320785633,1711555877871,-1000.0,0.00055065,2]
[320785634,1711555877881,-1000.0,0.00055065,2]
[320785635,1711555877890,-1000.0,0.00055065,2]
[320785636,1711555877900,-1000.0,0.00055065,2]
[320785637,1711555877910,-1000.0,0.00055065,2]
[320785638,1711555877919,-1000.0,0.00055065,2]
[320785639,1711555877928,-1000.0,0.00055065,2]
[320785640,1711555877939,-1000.0,0.00055065,2]
[320785641,1711555877948,-1000.0,0.00055065,2]
[320785642,1711555877957,-1000.0,0.00055065,2]
[320785643,1711555877967,-1000.0,0.00055065,2]
[320785644,1711555877978,-1000.0,0.00055065,2]
[320785645,1711555877988,-1000.0,0.00055065,2]
[320785646,1711555877999,-1000.0,0.00055065,2]
[320785647,1711555878009,-1000.0,0.00055065,2]
[320785648,1711555878019,-1000.0,0.00055065,2]
[320785649,1711555878029,-1000.0,0.00055065,2]
[320785650,1711555878039,-1000.0,0.00055065,2]
[320785651,1711555878049,-1000.0,0.00055065,2]
[320785652,1711555878059,-1000.0,0.00055065,2]
[320785653,1711555878069,-1000.0,0.00055065,2]
[320785654,1711555878079,-502.7758,0.00055065,2]
[320785655,1711555878089,-500.0,0.00055065,2]
[320785656,1711555878098,-500.0,0.00055065,2]
[320785657,1711555878108,-150.0,0.00055067,14]
[320785658,1711555878120,-1000.0,0.00055067,90]
[320785659,1711555878129,-5764.24772481,0.00055068,120]
[320785660,1711555878138,-500.0,0.00055068,120]
[320785661,1711555878148,-500.0,0.00055068,120]
[320785662,1711555878158,-500.0,0.00055068,120]
[320785663,1711555878170,-500.0,0.00055068,120]
[320785664,1711555878179,-500.0,0.00055068,120]
[320785665,1711555878189,-500.0,0.00055068,120]
[320785666,1711555878199,-500.0,0.00055068,120]
[320785667,1711555878209,-500.0,0.00055068,120]
[320785668,1711555878219,-500.0,0.00055068,120]
[320785669,1711555878228,-500.0,0.00055068,120]
[320785670,1711555878238,-500.0,0.00055068,120]
[320785671,1711555878247,-500.0,0.00055068,120]
[320785672,1711555878257,-552.0,0.00055068,120]
[320785673,1711555878267,-562.38,0.00055068,120]
[320785674,1711555878277,-500.0,0.00055068,120]
[320785675,1711555878287,-500.0,0.00055068,120]
[320785676,1711555878297,-500.0,0.00055068,120]
[320785677,1711555878306,-500.0,0.00055068,120]
[320785678,1711555878316,-500.0,0.00055068,120]
[320785679,1711555878326,-500.0,0.00055068,120]
[320785680,1711555878336,-498.76,0.00055068,120]
[320785681,1711555878346,-500.0,0.00055068,120]
[320785682,1711555878355,-500.0,0.00055068,120]
[320785683,1711555878365,-729.64,0.00055068,120]
[320785684,1711555878374,-500.0,0.00055068,120]
[320785685,1711555878384,-281.09,0.00055068,120]
[320785686,1711555878394,-500.0,0.00055068,120]
[320785687,1711555878403,-302.36,0.00055068,120]
[320785688,1711555878412,-500.0,0.00055068,120]
[320785689,1711555878422,-1225.27,0.00055068,120]
[320785690,1711555878431,-1275.0,0.00055068,120]
[320785691,1711555878441,-1134.63,0.00055068,120]
[320785692,1711555878450,-500.0,0.00055068,120]
[320785693,1711555878459,-500.0,0.00055068,120]
[320785694,1711555878469,-500.0,0.00055068,120]
[320785695,1711555878481,-500.0,0.00055068,120]
[320785696,1711555878491,-500.0,0.00055068,120]
[320785697,1711555878500,-500.0,0.00055068,120]
[320785698,1711555878510,-500.0,0.00055068,120]
[320785699,1711555878520,-500.0,0.00055068,120]
[320785700,1711555878529,-1457.47,0.00055068,120]
[320785701,1711555878539,-289.66,0.00055068,120]
[320785702,1711555878549,-500.0,0.00055068,120]
[320785703,1711555878559,-500.0,0.00055068,120]
[320785704,1711555878569,-500.0,0.00055068,120]
[320785705,1711555878580,-500.0,0.00055068,120]
[320785706,1711555878592,-158.54712818,0.00055068,120]
[320785707,1711555878603,-500.0,0.00055068,120]
[320785708,1711555878613,-500.0,0.00055068,120]
[320785709,1711555878624,-670.64,0.00055068,120]
[320785710,1711555878634,-726.47,0.00055068,120]
[320785711,1711555878654,-500.0,0.00055068,120]
[320785712,1711555878666,-500.0,0.00055068,120]
[320785713,1711555878676,-500.0,0.00055068,120]
[320785714,1711555878687,-500.0,0.00055068,120]
[320785715,1711555878696,-500.0,0.00055068,120]
[320785716,1711555878706,-515.51,0.00055068,120]
[320785717,1711555878715,-500.0,0.00055068,120]
[320785718,1711555878726,-813.63,0.00055068,120]
[320785719,1711555878741,-151.0,0.00055068,30]
[320785720,1711555878751,-2237.32,0.00055068,120]
[320785721,1711555878760,-500.0,0.00055068,120]
[320785722,1711555878770,-1535.75,0.00055068,120]
[320785723,1711555878780,-1282.94,0.00055068,120]
[320785724,1711555878789,-500.0,0.00055068,120]
[320785725,1711555878798,-500.0,0.00055068,120]
[320785726,1711555878808,-1256.72,0.00055068,120]
[320785727,1711555878818,-525.11,0.00055068,120]
[320785728,1711555878828,-500.0,0.00055068,120]
[320785729,1711555878838,-680.33,0.00055068,120]
[320785730,1711555878852,-500.0,0.00055068,120]
[320785731,1711555878862,-500.0,0.00055068,120]
[320785732,1711555878871,-656.15,0.00055068,120]
[320785733,1711555878881,-500.0,0.00055068,120]
[320785734,1711555878891,-1752.52,0.00055068,120]
[320785735,1711555878901,-742.87,0.00055068,120]
[320785736,1711555878910,-500.0,0.00055068,120]
[320785737,1711555879040,-500.0,0.00055068,120]
[320785738,1711555879050,-526.42,0.00055068,120]
[320785739,1711555879059,-500.0,0.00055068,120]
[320785740,1711555879068,-828.26,0.00055068,120]
[320785741,1711555879078,-509.22594818,0.00055068,120]
[320785742,1711555879088,-194.722382,0.00055068,120]
[320785743,1711555879097,-500.0,0.00055068,120]
[320785744,1711555879107,-500.0,0.00055068,120]
[320785745,1711555879119,-361.09791817,0.00055068,120]
[320785746,1711555879128,-500.0,0.00055068,120]
[320785747,1711555879138,-500.0,0.00055068,120]
[320785748,1711555879148,-500.0,0.00055068,120]
[320785749,1711555879159,-500.0,0.00055068,120]
[320785750,1711555879168,-500.0,0.00055068,120]
[320785751,1711555879179,-672.95,0.00055068,120]
[320785752,1711555879188,-500.0,0.00055068,120]
[320785753,1711555879198,-500.0,0.00055068,120]
[320785754,1711555879208,-500.0,0.00055068,120]
[320785755,1711555879217,-500.0,0.00055068,120]
[320785756,1711555879226,-894.45,0.00055068,120]
[320785757,1711555879242,-500.0,0.00055068,120]
[320785758,1711555879252,-500.0,0.00055068,120]
[320785759,1711555879262,-500.0,0.00055068,120]
[320785760,1711555879272,-500.0,0.00055068,120]
[320785761,1711555879281,-1596.51,0.00055068,120]
[320785762,1711555879291,-500.0,0.00055068,120]
[320785763,1711555879300,-454.32742962,0.00055068,120]
[320785764,1711555879309,-1251.29,0.00055068,120]
[320785765,1711555879319,-500.0,0.00055068,120]
[320785766,1711555879329,-500.0,0.00055068,120]
[320785767,1711555879338,-918.77,0.00055068,120]
[320785768,1711555879348,-500.0,0.00055068,120]
[320785769,1711555879358,-500.0,0.00055068,120]
[320785770,1711555879368,-633.03,0.00055068,120]
[320785771,1711555879377,-500.0,0.00055068,120]
[320785772,1711555879387,-524.07,0.00055068,120]
[320785773,1711555879397,-500.0,0.00055068,120]
[320785774,1711555879406,-752.1,0.00055068,120]
[320785775,1711555879415,-500.0,0.00055068,60]
[320785776,1711555879424,-500.0,0.00055068,120]
[320785777,1711555879434,-154.44035586,0.00055068,120]
[320785778,1711555879443,-500.0,0.00055068,120]
[320785779,1711555879452,-162.08,0.00055068,120]
[320785780,1711555879461,-813.84,0.00055068,120]
[320785781,1711555879471,-500.0,0.00055068,120]
[320785782,1711555879482,-684.77,0.00055068,120]
[320785783,1711555879492,-500.0,0.00055068,120]
[320785784,1711555879501,-500.0,0.00055068,120]
[320785785,1711555879511,-500.0,0.00055068,120]
[320785786,1711555879521,-500.0,0.00055068,120]
[320785787,1711555879530,-500.0,0.00055068,120]
[320785788,1711555879539,-862.93,0.00055068,120]
[320785789,1711555879549,-500.0,0.00055068,120]
[320785790,1711555879558,-1457.69,0.00055068,120]
[320785791,1711555879568,-605.69,0.00055068,120]
[320785792,1711555879577,-500.0,0.00055068,120]
[320785793,1711555879587,-500.0,0.00055068,120]
[320785794,1711555879597,-593.15,0.00055068,120]
[320785795,1711555879607,-500.0,0.00055068,120]
[320785796,1711555879616,-517.56,0.00055068,120]
[320785797,1711555879626,-500.0,0.00055068,120]
[320785798,1711555879636,-1182.15,0.00055068,120]
[320785799,1711555879645,-500.0,0.00055068,120]
[320785800,1711555879654,-778.34,0.00055068,120]
[320785801,1711555879664,-825.5,0.00055068,120]
[320785802,1711555879673,-403.27777371,0.00055068,120]
[320785803,1711555879682,-2648.21,0.00055068,120]
[320785804,1711555879692,-500.0,0.00055068,120]
[320785805,1711555879701,-500.0,0.00055068,120]
[320785806,1711555879711,-1267.49,0.00055068,120]
[320785807,1711555879720,-500.0,0.00055068,120]
[320785808,1711555879733,-500.0,0.00055068,120]
[320785809,1711555879743,-500.0,0.00055068,120]
[320785810,1711555879753,-500.0,0.00055068,120]
[320785811,1711555879763,-839.35,0.00055068,120]
[320785812,1711555879772,-500.0,0.00055068,120]
[320785813,1711555879781,-160.05360045,0.00055068,120]
[320785814,1711555879791,-500.0,0.00055068,120]
[320785815,1711555879801,-1135.8,0.00055068,120]
[320785816,1711555879811,-368.26,0.00055068,120]
[320785817,1711555879821,-500.0,0.00055068,120]
[320785818,1711555879831,-541.72,0.00055068,120]
[320785819,1711555879841,-550.01,0.00055068,120]
[320785820,1711555879851,-500.0,0.00055068,120]
[320785821,1711555879860,-500.0,0.00055068,120]
[320785822,1711555879873,-151.0,0.00055068,120]
[320785823,1711555879883,-500.0,0.00055068,120]
[320785824,1711555879892,-500.0,0.00055068,120]
[320785825,1711555879901,-500.0,0.00055068,120]
[320785826,1711555879910,-1262.44,0.00055068,120]
[320785827,1711555879919,-500.0,0.00055068,120]
[320785828,1711555879928,-804.47,0.00055068,120]
[320785829,1711555879937,-500.0,0.00055068,120]
[320785830,1711555879946,-500.0,0.00055068,120]
[320785831,1711555879955,-1315.49,0.00055068,120]
[320785832,1711555879964,-500.0,0.00055068,120]
[320785833,1711555879973,-151.0,0.00055068,120]
[320785834,1711555879984,-804.61,0.00055068,120]
[320785835,1711555879993,-500.0,0.00055068,120]
[320785836,1711555880002,-680.65,0.00055068,120]
[320785837,1711555880012,-500.0,0.00055068,120]
[320785838,1711555880021,-151.0,0.00055068,120]
[320785839,1711555880030,-500.0,0.00055068,120]
[320785840,1711555880040,-500.0,0.00055068,120]
[320785841,1711555880049,-500.0,0.00055068,120]
[320785842,1711555880058,-282.918613,0.00055068,120]
[320785843,1711555880067,-151.0,0.00055068,120]
[320785844,1711555880076,-500.0,0.00055068,120]
[320785845,1711555880086,-903.57,0.00055068,120]
[320785846,1711555880096,-500.0,0.00055068,120]
[320785847,1711555880106,-1352.94,0.00055068,120]
[320785848,1711555880118,-500.0,0.00055068,120]
[320785849,1711555880128,-500.0,0.00055068,120]
[320785850,1711555880138,-500.0,0.00055068,120]
[320785851,1711555880147,-500.0,0.00055068,120]
[320785852,1711555880158,-500.0,0.00055068,120]
[320785853,1711555880170,-635.82,0.00055068,120]
[320785854,1711555880180,-789.97,0.00055068,120]
[320785855,1711555880190,-624.13,0.00055068,120]
[320785856,1711555880199,-262.611744,0.00055068,120]
[320785857,1711555880209,-500.0,0.00055068,120]
[320785858,1711555880218,-500.0,0.00055068,120]
[320785859,1711555880228,-262.611744,0.00055068,120]
[320785860,1711555880239,-500.0,0.00055068,120]
[320785861,1711555880250,-500.0,0.00055068,120]
[320785862,1711555880260,-500.0,0.00055068,120]
[320785863,1711555880270,-500.0,0.00055068,120]
[320785864,1711555880280,-500.0,0.00055068,120]
[320785865,1711555880290,-500.0,0.00055068,120]
[320785866,1711555880300,-500.0,0.00055068,120]
[320785867,1711555880310,-500.0,0.00055068,120]
[320785868,1711555880319,-500.0,0.00055068,120]
[320785869,1711555880329,-532.76,0.00055068,120]
[320785870,1711555880339,-500.0,0.00055068,120]
[320785871,1711555880349,-500.0,0.00055068,120]
[320785872,1711555880359,-500.0,0.00055068,120]
[320785873,1711555880370,-500.0,0.00055068,120]
[320785874,1711555880380,-500.0,0.00055068,120]
[320785875,1711555880391,-672.68,0.00055068,30]
[320785876,1711555880402,-500.0,0.00055068,120]
[320785877,1711555880413,-500.0,0.00055068,120]
[320785878,1711555880424,-500.0,0.00055068,120]
[320785879,1711555880435,-500.0,0.00055068,120]
[320785880,1711555880447,-500.0,0.00055068,120]
[320785881,1711555880458,-500.0,0.00055068,120]
[320785882,1711555880468,-500.0,0.00055068,120]
[320785883,1711555880480,-527.4008245,0.00055068,120]
[320785884,1711555880492,-716.44,0.00055068,120]
[320785885,1711555880502,-527.07,0.00055068,120]